[Event "*** Titled Tuesday 3|2 Blitz"]
[Site "Chess.com"]
[Date "2016.01.05"]
[Round "6"]
[White "Penguininja"]
[Black "Satoshi95"]
[Result "1-0"]
[WhiteElo "2138"]
[BlackElo "2086"]
[TimeControl "180+2"]
[EndTime "18:16:31 PST"]
[Termination "Penguininja won on time"]

1. Nf3 {[%clk 0:03:01.9]} 1... Nf6 {[%clk 0:02:59.3]} 2. d4 {[%clk 0:03:03]}
2... e6 {[%clk 0:02:56.5]} 3. c4 {[%clk 0:03:02.8]} 3... b6 {[%clk 0:02:55]} 4.
e3 {[%clk 0:03:00.5]} 4... Bb7 {[%clk 0:02:54.1]} 5. Bd3 {[%clk 0:03:00.3]} 5...
d5 {[%clk 0:02:52.9]} 6. O-O {[%clk 0:03:01.7]} 6... Bd6 {[%clk 0:02:51.5]} 7.
b3 {[%clk 0:03:02.3]} 7... O-O {[%clk 0:02:50.7]} 8. Bb2 {[%clk 0:03:03.7]} 8...
Nbd7 {[%clk 0:02:48.6]} 9. Nc3 {[%clk 0:02:57.3]} 9... a6 {[%clk 0:02:45]} 10.
Qe2 {[%clk 0:02:36.2]} 10... Ne4 {[%clk 0:02:42.7]} 11. Nd2 {[%clk 0:02:00.9]}
11... f5 {[%clk 0:02:39.5]} 12. cxd5 {[%clk 0:01:55.5]} 12... exd5 {[%clk
0:02:35.1]} 13. f3 {[%clk 0:01:54.6]} 13... Nxd2 {[%clk 0:02:25.5]} 14. Qxd2
{[%clk 0:01:53.1]} 14... Qh4 {[%clk 0:02:25.5]} 15. g3 {[%clk 0:01:53.3]} 15...
Qh6 {[%clk 0:02:21.3]} 16. Rae1 {[%clk 0:01:50.9]} 16... Rae8 {[%clk 0:02:21.4]}
17. Qf2 {[%clk 0:01:30.7]} 17... c5 {[%clk 0:02:16.7]} 18. Re2 {[%clk
0:01:27.7]} 18... b5 {[%clk 0:01:38.8]} 19. Bc1 {[%clk 0:01:19.9]} 19... Qf6
{[%clk 0:01:35]} 20. Bb1 {[%clk 0:01:11]} 20... Re7 {[%clk 0:01:29.3]} 21. Nd1
{[%clk 0:01:00.7]} 21... Rfe8 {[%clk 0:01:29]} 22. dxc5 {[%clk 0:00:59.3]} 22...
Nxc5 {[%clk 0:01:27.4]} 23. Bb2 {[%clk 0:01:00.2]} 23... Qf7 {[%clk 0:01:25.9]}
24. Rd2 {[%clk 0:00:51.9]} 24... Be5 {[%clk 0:01:12.6]} 25. Bd4 {[%clk
0:00:33.5]} 25... Nd7 {[%clk 0:01:09.3]} 26. Nb2 {[%clk 0:00:27.4]} 26... Bxd4
{[%clk 0:01:06.8]} 27. exd4 {[%clk 0:00:29.3]} 27... Nf6 {[%clk 0:01:02.5]} 28.
Nd3 {[%clk 0:00:28.5]} 28... Ba8 {[%clk 0:01:00.6]} 29. Ne5 {[%clk 0:00:28.8]}
29... g6 {[%clk 0:00:58.8]} 30. Rc1 {[%clk 0:00:21.8]} 30... Qe6 {[%clk
0:00:57.2]} 31. Qe3 {[%clk 0:00:22.1]} 31... Nd7 {[%clk 0:00:56.6]} 32. f4
{[%clk 0:00:22.5]} 32... Nf6 {[%clk 0:00:55]} 33. Rdc2 {[%clk 0:00:19.9]} 33...
Ne4 {[%clk 0:00:53.3]} 34. a3 {[%clk 0:00:15.6]} 34... Qd6 {[%clk 0:00:51]} 35.
b4 {[%clk 0:00:13.4]} 35... Qb6 {[%clk 0:00:42.2]} 36. Rc8 {[%clk 0:00:11.5]}
36... Nf6 {[%clk 0:00:33.4]} 37. Ba2 {[%clk 0:00:10.9]} 37... Kg7 {[%clk
0:00:26.8]} 38. R8c5 {[%clk 0:00:08.1]} 38... Ng4 {[%clk 0:00:25.1]} 39. Qd3
{[%clk 0:00:08.6]} 39... Qf6 {[%clk 0:00:13.5]} 40. Bxd5 {[%clk 0:00:04.5]}
40... Nxe5 {[%clk 0:00:10.2]} 41. dxe5 {[%clk 0:00:05.7]} 41... Qf8 {[%clk
0:00:08.9]} 42. Bxa8 {[%clk 0:00:06.3]} 42... Rxa8 {[%clk 0:00:10.4]} 43. Rc7
{[%clk 0:00:07.6]} 43... Rd8 {[%clk 0:00:09.7]} 44. Qc3 {[%clk 0:00:06.4]} 44...
Red7 {[%clk 0:00:08.5]} 45. Qc5 {[%clk 0:00:06.7]} 45... Qe8 {[%clk 0:00:05.1]}
46. Rxd7+ {[%clk 0:00:06.3]} 46... Rxd7 {[%clk 0:00:04.4]} 47. Qc3 {[%clk
0:00:07.5]} 47... Kh6 {[%clk 0:00:04.5]} 48. Rc2 {[%clk 0:00:08.5]} 48... Qd8
{[%clk 0:00:05.5]} 49. Kf2 {[%clk 0:00:09.4]} 49... Rd3 {[%clk 0:00:06.1]} 50.
Qc5 {[%clk 0:00:09]} 50... Rxa3 {[%clk 0:00:05.4]} 51. Re2 {[%clk 0:00:08.1]}
1-0

[Event "*** Titled Tuesday 3|2 Blitz"]
[Site "Chess.com"]
[Date "2016.01.05"]
[Round "6"]
[White "Alliswell998"]
[Black "Carolina-moon"]
[Result "1/2-1/2"]
[WhiteElo "2063"]
[BlackElo "2010"]
[TimeControl "180+2"]
[EndTime "18:16:48 PST"]
[Termination "Game drawn by repetition"]

1. e4 {[%clk 0:03:01.9]} 1... c5 {[%clk 0:03:00.7]} 2. Nc3 {[%clk 0:03:02.4]}
2... Nc6 {[%clk 0:02:59.3]} 3. f4 {[%clk 0:03:03.8]} 3... g6 {[%clk 0:02:57.2]}
4. Nf3 {[%clk 0:03:00.6]} 4... Bg7 {[%clk 0:02:57.9]} 5. Bb5 {[%clk 0:03:01.1]}
5... Nd4 {[%clk 0:02:56.6]} 6. O-O {[%clk 0:03:01.3]} 6... Nxb5 {[%clk
0:02:52.6]} 7. Nxb5 {[%clk 0:03:03.2]} 7... d6 {[%clk 0:02:52.4]} 8. d3 {[%clk
0:03:03.4]} 8... Nf6 {[%clk 0:02:53.1]} 9. Qe1 {[%clk 0:03:03.5]} 9... Bg4
{[%clk 0:02:52.2]} 10. e5 {[%clk 0:02:59.8]} 10... dxe5 {[%clk 0:02:45.3]} 11.
fxe5 {[%clk 0:02:35.5]} 11... Nd5 {[%clk 0:02:45.3]} 12. Qe4 {[%clk 0:02:17.9]}
12... Bxf3 {[%clk 0:02:35.5]} 13. Rxf3 {[%clk 0:02:18.6]} 13... O-O {[%clk
0:02:32.9]} 14. Bg5 {[%clk 0:02:14.7]} 14... Qd7 {[%clk 0:02:30.1]} 15. Nd6
{[%clk 0:02:14.1]} 15... Qe6 {[%clk 0:02:19.3]} 16. Nxb7 {[%clk 0:02:10.4]}
16... Bxe5 {[%clk 0:02:13.7]} 17. Nxc5 {[%clk 0:02:10.3]} 17... Qd6 {[%clk
0:02:13.6]} 18. Kh1 {[%clk 0:02:02.5]} 18... Bxb2 {[%clk 0:02:09]} 19. Rb1
{[%clk 0:01:50.1]} 19... Qxc5 {[%clk 0:02:04.8]} 20. Rxb2 {[%clk 0:01:48.6]}
20... Nf6 {[%clk 0:01:16.1]} 21. Bxf6 {[%clk 0:01:48]} 21... exf6 {[%clk
0:01:16.8]} 22. Rxf6 {[%clk 0:01:47.1]} 22... Rae8 {[%clk 0:01:07.6]} 23. Qh4
{[%clk 0:01:37.3]} 23... Qc3 {[%clk 0:01:05]} 24. Rb1 {[%clk 0:01:30.5]} 24...
Qxc2 {[%clk 0:00:59.6]} 25. Rbf1 {[%clk 0:01:30.1]} 25... Qxd3 {[%clk
0:00:59.5]} 26. Qf4 {[%clk 0:01:22.7]} 26... Re4 {[%clk 0:00:53.2]} 27. Qf2
{[%clk 0:01:19]} 27... Qe2 {[%clk 0:00:46.8]} 28. Qxa7 {[%clk 0:01:15.3]} 28...
Re7 {[%clk 0:00:42.8]} 29. Qd4 {[%clk 0:01:10.8]} 29... Qxa2 {[%clk 0:00:42.6]}
30. h4 {[%clk 0:01:10.5]} 30... Qe2 {[%clk 0:00:38.5]} 31. Qf4 {[%clk
0:01:08.5]} 31... Qh5 {[%clk 0:00:38.2]} 32. Kh2 {[%clk 0:00:57.6]} 32... Rfe8
{[%clk 0:00:38.1]} 33. Rxf7 {[%clk 0:00:54]} 33... Qe5 {[%clk 0:00:20.7]} 34.
Qxe5 {[%clk 0:00:20.8]} 34... Rxe5 {[%clk 0:00:19.9]} 35. Ra7 {[%clk 0:00:21.3]}
35... Re4 {[%clk 0:00:18.6]} 36. Rff7 {[%clk 0:00:21.2]} 36... Rxh4+ {[%clk
0:00:17.9]} 37. Kg3 {[%clk 0:00:22.9]} 37... Rh5 {[%clk 0:00:16.1]} 38. Rg7+
{[%clk 0:00:23.7]} 38... Kh8 {[%clk 0:00:16.9]} 39. Kf3 {[%clk 0:00:24.6]} 39...
Rf8+ {[%clk 0:00:17.8]} 40. Ke3 {[%clk 0:00:25.3]} 40... Re5+ {[%clk 0:00:18.5]}
41. Kd4 {[%clk 0:00:25.9]} 41... Rh5 {[%clk 0:00:15.7]} 42. Rgc7 {[%clk
0:00:26]} 42... Rh4+ {[%clk 0:00:11.4]} 43. Ke3 {[%clk 0:00:26.5]} 43... Rh5
{[%clk 0:00:09.6]} 44. g3 {[%clk 0:00:26.8]} 44... Re5+ {[%clk 0:00:09.5]} 45.
Kd4 {[%clk 0:00:27.4]} 45... Rh5 {[%clk 0:00:07.1]} 46. Ke4 {[%clk 0:00:28.8]}
46... Re8+ {[%clk 0:00:07.7]} 47. Kf4 {[%clk 0:00:29.7]} 47... Rf8+ {[%clk
0:00:07.9]} 48. Kg4 {[%clk 0:00:30.5]} 48... Re8 {[%clk 0:00:08.3]} 49. Kf3
{[%clk 0:00:31.1]} 49... Rf8+ {[%clk 0:00:09.2]} 50. Kg2 {[%clk 0:00:32.4]}
50... Rd8 {[%clk 0:00:08.4]} 51. g4 {[%clk 0:00:33.5]} 51... Rh6 {[%clk
0:00:08.1]} 52. Kg3 {[%clk 0:00:34.5]} 52... Rd3+ {[%clk 0:00:08.5]} 53. Kf4
{[%clk 0:00:35.8]} 53... Rd8 {[%clk 0:00:08]} 54. Kg5 {[%clk 0:00:37.3]} 54...
Rh1 {[%clk 0:00:08.4]} 55. Kf6 {[%clk 0:00:37.3]} 55... Kg8 {[%clk 0:00:09]} 56.
Rg7+ {[%clk 0:00:37.5]} 56... Kh8 {[%clk 0:00:09.9]} 57. Rge7 {[%clk 0:00:38.8]}
57... Rf8+ {[%clk 0:00:10.2]} 58. Kg5 {[%clk 0:00:39]} 58... Rh2 {[%clk
0:00:07.2]} 59. Rec7 {[%clk 0:00:20.4]} 59... Kg8 {[%clk 0:00:07.2]} 60. Rg7+
{[%clk 0:00:20.5]} 60... Kh8 {[%clk 0:00:08.4]} 61. Rge7 {[%clk 0:00:22.4]}
61... Kg8 {[%clk 0:00:09.3]} 62. Rg7+ {[%clk 0:00:23.4]} 62... Kh8 {[%clk
0:00:10.6]} 63. Rge7 {[%clk 0:00:25.3]} 63... Kg8 {[%clk 0:00:11.9]} 64. Rg7+
{[%clk 0:00:25.8]} 1/2-1/2

[Event "*** Titled Tuesday 3|2 Blitz"]
[Site "Chess.com"]
[Date "2016.01.05"]
[Round "7"]
[White "tac49"]
[Black "StellarChessPro"]
[Result "1-0"]
[WhiteElo "2430"]
[BlackElo "2238"]
[TimeControl "180+2"]
[EndTime "18:23:58 PST"]
[Termination "tac49 won by resignation"]

1. e4 {[%clk 0:03:00.8]} 1... c6 {[%clk 0:03:00.3]} 2. d4 {[%clk 0:02:57.9]}
2... d5 {[%clk 0:03:01.6]} 3. Nd2 {[%clk 0:02:58.8]} 3... dxe4 {[%clk
0:03:02.2]} 4. Nxe4 {[%clk 0:03:00.7]} 4... Nf6 {[%clk 0:03:04.1]} 5. Nxf6+
{[%clk 0:03:00.8]} 5... exf6 {[%clk 0:03:06]} 6. c3 {[%clk 0:03:00.2]} 6... Bd6
{[%clk 0:03:06.8]} 7. Bd3 {[%clk 0:03:00.8]} 7... O-O {[%clk 0:03:07.4]} 8. Ne2
{[%clk 0:03:01.6]} 8... Re8 {[%clk 0:03:08.4]} 9. Qc2 {[%clk 0:03:02.4]} 9... g6
{[%clk 0:03:09.2]} 10. Bd2 {[%clk 0:03:00.8]} 10... b5 {[%clk 0:03:09.4]} 11. h4
{[%clk 0:03:00.4]} 11... a5 {[%clk 0:03:08.7]} 12. h5 {[%clk 0:02:59.7]} 12...
f5 {[%clk 0:03:10.1]} 13. O-O-O {[%clk 0:02:58.1]} 13... a4 {[%clk 0:03:10.3]}
14. hxg6 {[%clk 0:02:51.6]} 14... fxg6 {[%clk 0:03:10.8]} 15. Nf4 {[%clk
0:02:51.2]} 15... Qf6 {[%clk 0:03:04.1]} 16. g4 {[%clk 0:02:33]} 16... fxg4
{[%clk 0:02:46.7]} 17. Nxg6 {[%clk 0:02:25.8]} 17... hxg6 {[%clk 0:02:44.1]} 18.
Bxg6 {[%clk 0:02:27.7]} 18... Re7 {[%clk 0:02:19.8]} 19. Bh7+ {[%clk 0:02:23.4]}
19... Kf7 {[%clk 0:02:13.3]} 20. Rh6 {[%clk 0:02:22.4]} 20... Qg7 {[%clk
0:01:59.6]} 21. Rxd6 {[%clk 0:02:18.7]} 21... Nd7 {[%clk 0:01:54]} 22. Bh6
{[%clk 0:02:10.4]} 1-0

[Event "*** Titled Tuesday 3|2 Blitz"]
[Site "Chess.com"]
[Date "2016.01.05"]
[Round "7"]
[White "Colombiano07"]
[Black "nfds"]
[Result "0-1"]
[WhiteElo "2166"]
[BlackElo "2333"]
[TimeControl "180+2"]
[EndTime "18:24:35 PST"]
[Termination "nfds won by checkmate"]

1. d4 {[%clk 0:03:01.9]} 1... Nf6 {[%clk 0:03:00.5]} 2. Nc3 {[%clk 0:03:01.4]}
2... d5 {[%clk 0:02:59.7]} 3. Bg5 {[%clk 0:03:01.7]} 3... Bf5 {[%clk 0:02:59.1]}
4. Bxf6 {[%clk 0:02:54.4]} 4... exf6 {[%clk 0:02:52.3]} 5. e3 {[%clk 0:02:54.4]}
5... Bb4 {[%clk 0:02:44.3]} 6. Bd3 {[%clk 0:02:52.5]} 6... Bg6 {[%clk
0:02:39.5]} 7. h4 {[%clk 0:02:53]} 7... Qe7 {[%clk 0:02:26]} 8. h5 {[%clk
0:02:45.1]} 8... Be4 {[%clk 0:02:26.6]} 9. f3 {[%clk 0:02:41.7]} 9... Bxd3
{[%clk 0:02:20.6]} 10. Qxd3 {[%clk 0:02:43.6]} 10... O-O {[%clk 0:02:12.4]} 11.
O-O-O {[%clk 0:02:42.5]} 11... Bxc3 {[%clk 0:02:13.1]} 12. Qxc3 {[%clk
0:02:43.1]} 12... Re8 {[%clk 0:02:12.7]} 13. Re1 {[%clk 0:02:38.5]} 13... c5
{[%clk 0:02:08.9]} 14. Qxc5 {[%clk 0:02:35.9]} 14... Qxc5 {[%clk 0:02:05.9]} 15.
dxc5 {[%clk 0:02:37.8]} 15... Nd7 {[%clk 0:02:02.6]} 16. b4 {[%clk 0:02:37.9]}
16... a5 {[%clk 0:02:02.3]} 17. a3 {[%clk 0:02:36.6]} 17... axb4 {[%clk
0:02:03.2]} 18. axb4 {[%clk 0:02:38.5]} 18... b6 {[%clk 0:01:38.3]} 19. cxb6
{[%clk 0:02:17.2]} 19... Nxb6 {[%clk 0:01:37.9]} 20. Nh3 {[%clk 0:02:14.7]}
20... Nc4 {[%clk 0:01:37.3]} 21. Kb1 {[%clk 0:02:04.9]} 21... Ra3 {[%clk
0:01:30.4]} 22. Nf4 {[%clk 0:01:38.5]} 22... Rea8 {[%clk 0:01:27.5]} 23. c3
{[%clk 0:01:34.5]} 23... Rb3+ {[%clk 0:01:27.5]} 24. Kc2 {[%clk 0:01:35.1]}
24... Rb2+ {[%clk 0:01:28.2]} 25. Kd3 {[%clk 0:01:27]} 25... Rd2# {[%clk
0:01:28.6]} 0-1

[Event "*** Titled Tuesday 3|2 Blitz"]
[Site "Chess.com"]
[Date "2016.01.05"]
[Round "7"]
[White "UltimateCrusher2"]
[Black "LePatronn"]
[Result "1/2-1/2"]
[WhiteElo "2040"]
[BlackElo "1847"]
[TimeControl "180+2"]
[EndTime "18:24:52 PST"]
[Termination "Game drawn by agreement"]

1. b3 {[%clk 0:03:01.9]} 1... c5 {[%clk 0:02:59.4]} 2. Bb2 {[%clk 0:02:59.9]}
2... Nf6 {[%clk 0:03:01]} 3. Nf3 {[%clk 0:03:00.6]} 3... Nc6 {[%clk 0:03:02]} 4.
e3 {[%clk 0:02:53]} 4... g6 {[%clk 0:03:02.9]} 5. Bxf6 {[%clk 0:02:38.5]} 5...
exf6 {[%clk 0:03:02.8]} 6. Bb5 {[%clk 0:02:40]} 6... Qc7 {[%clk 0:03:00.4]} 7.
Nc3 {[%clk 0:02:40]} 7... a6 {[%clk 0:02:57]} 8. Nd5 {[%clk 0:02:25.7]} 8... Qd6
{[%clk 0:02:35.6]} 9. Nb6 {[%clk 0:02:25.7]} 9... Rb8 {[%clk 0:02:33.6]} 10.
Bxc6 {[%clk 0:02:09.2]} 10... Qxc6 {[%clk 0:02:32]} 11. Nxc8 {[%clk 0:02:10.3]}
11... Rxc8 {[%clk 0:02:32.7]} 12. O-O {[%clk 0:02:11.4]} 12... Bg7 {[%clk
0:02:31.5]} 13. e4 {[%clk 0:02:03.8]} 13... O-O {[%clk 0:02:30]} 14. Re1 {[%clk
0:02:04.3]} 14... Rfe8 {[%clk 0:02:29.1]} 15. d3 {[%clk 0:01:50.7]} 15... f5
{[%clk 0:02:10.1]} 16. exf5 {[%clk 0:01:41.8]} 16... Bxa1 {[%clk 0:02:09]} 17.
Qxa1 {[%clk 0:01:43.7]} 17... Rxe1+ {[%clk 0:02:09.4]} 18. Qxe1 {[%clk
0:01:40.5]} 18... Qf6 {[%clk 0:02:02.4]} 19. fxg6 {[%clk 0:01:39.1]} 19... hxg6
{[%clk 0:02:00.8]} 20. h3 {[%clk 0:01:37.4]} 20... Kg7 {[%clk 0:01:59.4]} 21.
Qe4 {[%clk 0:01:37.5]} 21... Qc6 {[%clk 0:01:52.8]} 22. Qe5+ {[%clk 0:01:37.1]}
22... Qf6 {[%clk 0:01:48.3]} 23. Qd5 {[%clk 0:01:34.8]} 23... Qc6 {[%clk
0:01:45.1]} 24. Qe5+ {[%clk 0:01:32]} 24... Qf6 {[%clk 0:01:44.4]} 25. Qd5
{[%clk 0:01:28.4]} 1/2-1/2

[Event "*** Titled Tuesday 3|2 Blitz"]
[Site "Chess.com"]
[Date "2016.01.05"]
[Round "7"]
[White "alex_zapata"]
[Black "chess4life23"]
[Result "1-0"]
[WhiteElo "2206"]
[BlackElo "2175"]
[TimeControl "180+2"]
[EndTime "18:26:09 PST"]
[Termination "alex_zapata won by resignation"]

1. e4 {[%clk 0:03:01.9]} 1... c5 {[%clk 0:02:58.6]} 2. Nf3 {[%clk 0:03:02.9]}
2... d6 {[%clk 0:02:58.9]} 3. d4 {[%clk 0:03:04.1]} 3... cxd4 {[%clk 0:02:59.8]}
4. Nxd4 {[%clk 0:03:06]} 4... Nf6 {[%clk 0:03:01]} 5. Nc3 {[%clk 0:03:06.8]}
5... a6 {[%clk 0:03:02.3]} 6. Bg5 {[%clk 0:03:07.9]} 6... e6 {[%clk 0:03:01.9]}
7. f4 {[%clk 0:03:09.1]} 7... Nbd7 {[%clk 0:03:01.7]} 8. Qf3 {[%clk 0:03:09.9]}
8... Qc7 {[%clk 0:03:01.6]} 9. O-O-O {[%clk 0:03:11.2]} 9... b5 {[%clk
0:03:02.1]} 10. Bd3 {[%clk 0:03:12]} 10... Bb7 {[%clk 0:03:02.2]} 11. Rhe1
{[%clk 0:03:12.7]} 11... Be7 {[%clk 0:03:01.3]} 12. Qg3 {[%clk 0:03:13.5]} 12...
O-O {[%clk 0:02:28.3]} 13. e5 {[%clk 0:03:07.1]} 13... dxe5 {[%clk 0:02:24]} 14.
fxe5 {[%clk 0:03:09]} 14... Nh5 {[%clk 0:02:20]} 15. Qh4 {[%clk 0:03:09]} 15...
Bxg5+ {[%clk 0:02:20.5]} 16. Qxg5 {[%clk 0:03:10.9]} 16... g6 {[%clk 0:02:21.9]}
17. g4 {[%clk 0:03:09.8]} 17... Ng7 {[%clk 0:02:22.3]} 18. h4 {[%clk 0:03:09.7]}
18... Nc5 {[%clk 0:02:13.1]} 19. h5 {[%clk 0:03:06.7]} 19... b4 {[%clk
0:02:01.8]} 20. Ne4 {[%clk 0:03:05.8]} 20... Bxe4 {[%clk 0:01:26.3]} 21. Bxe4
{[%clk 0:03:05.7]} 21... Nxe4 {[%clk 0:01:13.5]} 22. Rxe4 {[%clk 0:03:07.6]}
22... Rfd8 {[%clk 0:01:00.6]} 23. hxg6 {[%clk 0:02:52.1]} 23... hxg6 {[%clk
0:00:37.3]} 24. Rh1 {[%clk 0:02:43.9]} 24... Rac8 {[%clk 0:00:38]} 25. Rh2
{[%clk 0:02:03.6]} 25... Qb7 {[%clk 0:00:23.8]} 26. Rf4 {[%clk 0:01:43.6]} 26...
b3 {[%clk 0:00:21.3]} 27. axb3 {[%clk 0:01:28.7]} 27... Rxd4 {[%clk 0:00:13.2]}
28. Rxd4 {[%clk 0:01:26.3]} 28... Qxb3 {[%clk 0:00:14.8]} 29. Rd8+ {[%clk
0:01:24.4]} 1-0

[Event "*** Titled Tuesday 3|2 Blitz"]
[Site "Chess.com"]
[Date "2016.01.05"]
[Round "7"]
[White "Hikaru"]
[Black "jcibarra"]
[Result "1-0"]
[WhiteElo "2886"]
[BlackElo "2525"]
[TimeControl "180+2"]
[EndTime "18:28:56 PST"]
[Termination "Hikaru won by resignation"]

1. d4 {[%clk 0:03:01.9]} 1... Nf6 {[%clk 0:03:00.8]} 2. Bf4 {[%clk 0:02:40.7]}
2... d6 {[%clk 0:03:01.3]} 3. e3 {[%clk 0:02:40.5]} 3... g6 {[%clk 0:03:02.6]}
4. Nf3 {[%clk 0:02:40.4]} 4... Bg7 {[%clk 0:03:03.9]} 5. h3 {[%clk 0:02:41.8]}
5... O-O {[%clk 0:03:05.3]} 6. c4 {[%clk 0:02:43]} 6... Nfd7 {[%clk 0:03:05.1]}
7. Be2 {[%clk 0:02:43.2]} 7... e5 {[%clk 0:03:06.3]} 8. Bh2 {[%clk 0:02:44.5]}
8... Nc6 {[%clk 0:03:06.2]} 9. Nc3 {[%clk 0:02:43.8]} 9... f5 {[%clk 0:03:05.3]}
10. O-O {[%clk 0:02:44.6]} 10... g5 {[%clk 0:02:52.6]} 11. dxe5 {[%clk
0:02:37.6]} 11... dxe5 {[%clk 0:02:53.7]} 12. Ne1 {[%clk 0:02:33.3]} 12... e4
{[%clk 0:02:42]} 13. Nc2 {[%clk 0:02:32.4]} 13... Nce5 {[%clk 0:02:41]} 14. Qd5+
{[%clk 0:02:31.1]} 14... Kh8 {[%clk 0:02:41.4]} 15. Rad1 {[%clk 0:02:32.7]}
15... c6 {[%clk 0:02:27.3]} 16. Qd6 {[%clk 0:02:29.7]} 16... Qe8 {[%clk
0:02:19.1]} 17. Nd4 {[%clk 0:02:18.7]} 17... Rf6 {[%clk 0:02:15.8]} 18. Qc7
{[%clk 0:02:19.9]} 18... Bf8 {[%clk 0:02:06.9]} 19. Nb3 {[%clk 0:02:15.7]} 19...
Rf7 {[%clk 0:01:55.5]} 20. Bh5 {[%clk 0:02:14.4]} 20... Ng6 {[%clk 0:01:49.7]}
21. Qg3 {[%clk 0:02:04]} 21... Bh6 {[%clk 0:01:36.1]} 22. Qd6 {[%clk 0:01:32.4]}
22... Nf6 {[%clk 0:01:30.7]} 23. Be2 {[%clk 0:01:15.4]} 23... Bf8 {[%clk
0:01:26.8]} 24. Qd8 {[%clk 0:01:14.7]} 24... Be6 {[%clk 0:01:15.6]} 25. Qxe8
{[%clk 0:01:14.9]} 25... Rxe8 {[%clk 0:01:17.5]} 26. Bd6 {[%clk 0:01:09.9]}
26... Bg7 {[%clk 0:01:13.7]} 27. Nd4 {[%clk 0:01:06.3]} 27... Bc8 {[%clk
0:01:13.7]} 28. c5 {[%clk 0:01:07.8]} 28... Nd7 {[%clk 0:01:01.7]} 29. b4 {[%clk
0:01:03.5]} 29... Nde5 {[%clk 0:00:59.9]} 30. Bh5 {[%clk 0:01:01.4]} 30... Nc4
{[%clk 0:00:53]} 31. Bb8 {[%clk 0:00:51.9]} 31... a6 {[%clk 0:00:47.1]} 32. Be2
{[%clk 0:00:52.9]} 32... Nge5 {[%clk 0:00:40.6]} 33. Na4 {[%clk 0:00:51.9]}
33... f4 {[%clk 0:00:38.4]} 34. Bxe5 {[%clk 0:00:51.2]} 34... Nxe5 {[%clk
0:00:38.8]} 35. Bh5 {[%clk 0:00:50.3]} 35... Ng6 {[%clk 0:00:37.1]} 36. Nb6
{[%clk 0:00:51.9]} 36... f3 {[%clk 0:00:18.1]} 37. Nxc8 {[%clk 0:00:38.6]} 37...
Rxc8 {[%clk 0:00:20]} 38. gxf3 {[%clk 0:00:38.7]} 38... exf3 {[%clk 0:00:21.1]}
39. Nxf3 {[%clk 0:00:37.2]} 39... Rcf8 {[%clk 0:00:15.2]} 40. Nxg5 {[%clk
0:00:33.4]} 40... Rf5 {[%clk 0:00:16.2]} 41. f4 {[%clk 0:00:35]} 41... Ne7
{[%clk 0:00:14.2]} 42. Bg4 {[%clk 0:00:36]} 42... Rd5 {[%clk 0:00:14.2]} 43. Ne6
{[%clk 0:00:35.4]} 43... Rg8 {[%clk 0:00:13.3]} 44. Kf2 {[%clk 0:00:34.7]} 44...
h5 {[%clk 0:00:13.2]} 45. Bf3 {[%clk 0:00:35.7]} 45... Rxd1 {[%clk 0:00:13.2]}
46. Rxd1 {[%clk 0:00:36.6]} 46... Bc3 {[%clk 0:00:12.8]} 47. Rd7 {[%clk
0:00:36.6]} 47... Nf5 {[%clk 0:00:14.2]} 48. Be4 {[%clk 0:00:37.8]} 48... Ng7
{[%clk 0:00:12.5]} 49. Ng5 {[%clk 0:00:39.1]} 49... Rf8 {[%clk 0:00:10.6]} 50.
Rxb7 {[%clk 0:00:39.3]} 1-0